bitfinex-derivatives/quotes_SOLF0:USTF0_20250820
["timestamp","ask_amount","ask_price","bid_price","bid_amount"]
[1755691782916,2.22,181.02,180.92,2.96]
[1755691783220,2.22,181.06,180.92,7.55127815]
[1755691783417,2.22,181.06,180.94,2.96]
[1755691783616,5.525,181.0,180.96,5.526]
[1755691783919,2.22,181.06,180.97,2.96]
[1755691784116,2.22,181.06,180.9,3.8069709]
[1755691784117,2.22,181.06,180.96,0.03540547]
[1755691784520,2.22,181.06,180.93,2.96]
[1755691784817,2.22,181.06,180.95,2.96]
[1755691785220,5.5261,180.97,180.92,5.5272]
[1755691785416,2.22,181.06,180.94,2.96]
[1755691786124,2.22,181.06,180.95,5.5264]
[1755691786419,5.5255,180.99,180.96,2.96]
[1755691786615,2.22,181.06,180.92,8.4872]
[1755691786820,2.22,181.06,180.92,2.96]
[1755691787414,5.5252,181.0,180.97,2.96]
[1755691787617,5.5252,181.0,180.92,2.96]
[1755691787816,5.5253,180.99,180.96,5.5262]
[1755691788016,5.5253,180.99,180.98,2.96]
[1755691788621,5.5262,180.96,180.91,2.96]
[1755691788816,5.5262,180.96,180.93,2.96]
[1755691789125,5.5249,181.01,180.94,3.8069709]
[1755691789427,2.22,181.08,181.0,5.5248]
[1755691789630,2.22,181.08,181.01,2.96]
[1755691789921,2.22,181.12,181.02,5.5243]
[1755691790124,2.22,181.12,180.96,4.63240639]
[1755691790125,5.5237,181.04,181.03,2.96]
[1755691792027,5.5235,181.05,181.04,2.96]
[1755691792425,2.22,181.12,181.0,2.96]
[1755691792426,5.5246,181.01,181.0,2.96]
[1755691793529,2.22,181.09,181.0,2.96]
[1755691794427,2.22,181.09,180.96,6.7669709]
[1755691794628,2.22,181.09,180.96,2.96]
[1755691795526,2.22,181.09,181.0,8.6548]
[1755691795724,2.22,181.09,181.01,0.03607224]
[1755691798625,2.21,181.12,181.02,3.13]
[1755691799733,2.21,181.12,181.05,0.03548695]
[1755691800529,2.21,181.22,181.09,3.13]
[1755691801139,0.03909923,181.17,181.09,3.13]
[1755691801327,0.03909923,181.17,181.14,0.0416899]
[1755691801733,2.24909923,181.17,181.14,0.0416899]
[1755691802029,0.03909923,181.17,181.14,0.0416899]
[1755691802237,2.21,181.15,181.14,0.0416899]
[1755691802436,0.03909923,181.17,181.14,0.0416899]
[1755691802628,2.24909923,181.17,181.14,0.0416899]
[1755691802835,2.21,181.15,181.14,0.0416899]
[1755691804736,0.03909923,181.17,181.14,0.0416899]
[1755691806141,2.21,181.15,181.14,0.0416899]
[1755691807345,0.03909923,181.17,181.14,0.0416899]
[1755691808240,2.24909923,181.17,181.14,0.0416899]
[1755691808846,0.03909923,181.17,181.14,3.1716899]
[1755691809449,0.03909923,181.17,181.14,0.0416899]
[1755691810543,2.21,181.16,181.14,0.0416899]
[1755691810740,2.21,181.15,181.14,0.00524226]
[1755691811451,2.77,181.15,181.05,3.13]
[1755691811646,2.21,181.15,181.05,3.13]
[1755691811949,2.21,181.14,181.05,3.13]
[1755691812653,0.03617298,181.11,181.05,3.13]
[1755691812852,0.03617298,181.11,180.97,3.13]
[1755691813041,0.03617298,181.11,181.01,5.5244]
[1755691813247,2.21,181.13,181.02,3.13]
[1755691813646,0.04148203,181.08,181.02,3.13]
[1755691813951,0.04148203,181.08,180.94,3.13]
[1755691814448,2.21,181.1,180.98,3.13]
[1755691814851,20.4069709,181.11,180.98,3.13]
[1755691814852,2.24746509,181.03,180.98,3.13]
[1755691815151,2.24746509,181.03,180.9,3.13]
[1755691815445,2.24746509,181.03,180.93,5.5268]
[1755691815748,2.21,181.03,180.94,3.13]
[1755691815952,0.03830534,181.0,180.94,3.13]
[1755691816350,0.03830534,181.0,180.94,5.5268]
[1755691816543,0.03830534,181.0,180.97,3.13]
[1755691817152,0.03830534,181.0,180.9,3.13]
[1755691817543,2.21,181.05,180.92,5.5273]
[1755691817746,2.21,181.05,180.93,3.13]
[1755691817941,0.03778119,180.97,180.95,3.13]
[1755691818145,0.03778119,180.97,180.89,3.8069709]
[1755691818452,2.21,181.05,180.91,3.13]
[1755691818648,0.0363254,180.95,180.94,5.5268]
[1755691818858,2.21,181.05,180.9,3.13]
[1755691819052,2.21,181.05,180.97,3.13]
[1755691819356,2.21,181.05,180.96,0.04171616]
[1755691819740,3.8069709,181.04,180.96,0.04171616]
[1755691820049,2.24,181.03,180.96,0.04171616]
[1755691820347,2.24,181.03,180.92,3.13]
[1755691820547,2.24,181.13,180.98,0.03770881]
[1755691820743,2.24,181.08,180.98,0.03770881]
[1755691820942,2.24,181.08,180.97,3.13]
[1755691821349,2.24,181.08,181.01,0.03828765]
[1755691823655,2.24,181.12,181.01,0.03828765]
[1755691824152,2.24,181.12,181.0,3.13]
[1755691824352,2.24,181.12,181.05,0.03961576]
[1755691827157,2.25,181.08,180.96,2.86]
[1755691827456,6.0569709,181.05,180.96,2.86]
[1755691828456,0.03928111,181.02,180.96,2.86]
[1755691829656,0.03928111,181.02,180.99,2.86]
[1755691829854,0.03928111,181.02,180.98,2.86]
[1755691830050,0.03928111,181.02,180.97,5.5256]
[1755691830250,0.03928111,181.02,180.97,2.86]
[1755691830447,0.03928111,181.02,180.96,5.5261]
[1755691830649,0.03928111,181.02,180.95,2.86]
[1755691830860,0.03928111,181.02,180.97,5.5257]
[1755691831050,0.03928111,181.02,180.99,2.86]
[1755691831253,0.03928111,181.02,180.94,7.45127815]
[1755691831556,0.03928111,181.02,180.96,5.526]
[1755691832070,0.03928111,181.02,180.97,8.3858]
[1755691832360,0.03928111,181.02,180.95,4.59127815]
[1755691832557,0.03928111,181.02,181.0,5.5247]
[1755691832750,0.03928111,181.02,181.01,2.86]
[1755691832950,0.03928111,181.02,180.97,4.59127815]
[1755691833151,0.03928111,181.02,180.92,13.11121984]
[1755691833152,0.03928111,181.02,180.96,4.59127815]
[1755691833350,0.03928111,181.02,180.94,2.86]
[1755691833558,0.03928111,181.02,180.95,5.5263]
[1755691833759,0.03928111,181.02,180.94,2.86]
[1755691834458,2.24,181.01,180.94,2.86]
[1755691835854,2.24,181.01,180.9,7.45127815]
[1755691836360,2.24,181.01,180.9,2.86]
[1755691836557,0.03600341,180.97,180.9,2.86]
[1755691837664,0.03600341,180.97,180.9,7.45127815]
[1755691837854,0.03600341,180.97,180.94,2.86]
[1755691838049,2.24,181.05,180.94,2.86]
[1755691838360,2.24,181.05,180.97,5.5257]
[1755691838558,2.28,181.09,180.98,2.86]
[1755691839355,2.28,181.09,181.02,0.03785306]
[1755691840661,3.8069709,181.12,181.02,0.03785306]
[1755691840858,2.28,181.13,181.02,0.03785306]
[1755691841260,2.28,181.13,181.03,2.86]
[1755691841762,2.28,181.13,181.06,0.0383758]
[1755691842667,2.28,181.11,181.06,0.0383758]
[1755691842863,3.8069709,181.12,181.06,0.0383758]
[1755691843059,2.28,181.09,181.06,0.0383758]
[1755691843362,3.8069709,181.12,181.06,0.0383758]
[1755691843664,2.28,181.11,181.06,0.0383758]
[1755691843864,2.28,181.1,181.06,0.0383758]
[1755691844064,2.28,181.11,181.06,0.0383758]
[1755691844262,2.28,181.11,180.99,2.86]
[1755691844558,2.28,181.07,180.99,2.86]
[1755691845764,0.03546131,181.05,180.95,2.86]
[1755691845959,0.03546131,181.05,180.97,2.86]
[1755691846463,2.28,181.07,180.97,8.3858]
[1755691846663,0.03569905,181.03,180.97,2.86]
[1755691847761,0.03569905,181.03,180.97,8.3858]
[1755691848562,0.03569905,181.03,180.95,4.58908182]
[1755691848763,0.03569905,181.03,180.98,2.86]
[1755691848963,0.03569905,181.03,180.98,7.44908182]
[1755691849169,0.03569905,181.03,181.01,2.86]
[1755691849371,0.03569905,181.03,180.98,2.86]
[1755691849566,0.03569905,181.03,180.97,4.58908182]
[1755691849762,0.03569905,181.03,180.99,2.86]
[1755691850164,0.03569905,181.03,180.98,2.86]
[1755691850467,0.03569905,181.03,181.02,2.86]
[1755691851060,2.28,181.11,181.02,2.86]
[1755691851466,2.32,181.15,181.02,2.86]
[1755691851662,2.32,181.15,181.05,2.86]
[1755691852771,2.32,181.2,181.08,2.86]
[1755691853565,2.32,181.2,181.12,0.03483872]
[1755691857171,2.32,181.2,181.12,5.55603872]
[1755691857379,2.32,181.2,181.12,0.03483872]
[1755691861482,2.32,181.23,181.12,3.03483872]
[1755691861978,2.32,181.23,181.12,3.0]
[1755691862485,2.32,181.23,181.16,0.03480138]
[1755691862874,6.1269709,181.23,181.16,0.03480138]
[1755691863178,2.32,181.22,181.16,0.03480138]
[1755691864671,2.32,181.21,181.16,0.03480138]
[1755691864872,2.32,181.19,181.16,0.03480138]
[1755691865079,2.32,181.18,181.16,0.03480138]
[1755691865476,3.8069709,181.22,181.16,0.03480138]
[1755691865683,2.32,181.24,181.16,0.03480138]
[1755691866182,2.32,181.24,181.14,3.0]
[1755691866373,2.32,181.24,181.18,0.03494113]
[1755691868686,2.32,181.24,181.1,3.0]
[1755691868984,2.32,181.19,181.1,3.0]
[1755691869982,0.03555804,181.16,181.1,3.0]
[1755691871983,0.03555804,181.16,181.04,3.0]
[1755691871984,2.32,181.15,181.04,3.0]
[1755691872582,2.32,181.19,181.04,3.0]
[1755691872885,0.04215856,181.11,181.04,3.0]
[1755691873089,0.04215856,181.11,181.08,5.5224]
[1755691873388,2.32,181.19,181.11,3.0]
[1755691874685,2.32,181.19,181.13,0.04094821]
[1755691874890,3.8069709,181.24,181.14,3.0]
[1755691875090,2.37,181.25,181.14,3.0]
[1755691875693,2.37,181.25,181.18,0.04247843]
[1755691877799,2.37,181.23,181.18,0.04247843]
[1755691878000,2.37,181.23,181.1,3.0]
[1755691878197,2.37,181.19,181.1,3.0]
[1755691879499,0.0355436,181.16,181.1,3.0]
[1755691880300,0.0355436,181.16,181.13,3.0]
[1755691880501,0.0355436,181.16,181.15,3.0]
[1755691881290,2.4,181.27,181.15,3.0]
[1755691882599,2.4,181.27,181.19,0.03506472]
[1755691887204,2.39,181.23,181.19,0.03506472]
[1755691887400,3.8069709,181.24,181.19,0.03506472]
[1755691887602,2.39,181.23,181.12,2.97]
[1755691888109,3.8069709,181.2,181.12,2.97]
[1755691888310,2.39,181.19,181.12,2.97]
[1755691888806,2.39,181.19,181.14,0.03648457]
[1755691889011,3.8069709,181.2,181.14,0.03648457]
[1755691889012,2.39,181.17,181.14,0.03648457]
[1755691889213,2.39,181.17,181.08,2.97]
[1755691890313,3.8069709,181.16,181.08,2.97]
[1755691890510,3.8069709,181.16,181.11,0.03643285]
[1755691891013,2.39,181.14,181.11,0.03643285]
[1755691891312,2.39,181.15,181.11,0.03643285]
[1755691891718,2.39,181.15,181.04,2.97]
[1755691891922,2.42588437,181.15,181.04,2.97]
[1755691892120,2.39,181.15,181.04,2.97]
[1755691892915,0.03795011,181.11,181.04,2.97]
[1755691893220,0.03795011,181.11,181.06,2.97]
[1755691893518,0.03795011,181.11,181.05,5.5234]
[1755691893519,0.03795011,181.11,181.05,10.1021202]
[1755691894022,0.03795011,181.11,181.1,2.97]
[1755691896819,3.8069709,181.2,181.1,2.97]
[1755691897323,2.43,181.19,181.1,2.97]
[1755691898019,2.43,181.19,181.13,0.03811448]
[1755691900920,3.8069709,181.16,181.06,2.97]
[1755691901124,3.8069709,181.12,181.02,7.5487202]
[1755691901423,2.43,181.11,181.02,2.97]
[1755691902322,0.04083089,181.08,181.02,2.97]
[1755691902925,6.27780179,181.08,180.98,2.97]
[1755691903322,2.43,181.07,180.98,2.97]
[1755691903825,2.43,181.04,180.94,2.97]
[1755691904019,6.2369709,181.04,180.94,2.97]
[1755691904224,2.43,181.03,180.94,2.97]
[1755691904727,0.04070888,181.01,180.94,2.97]
[1755691906121,0.04070888,181.01,180.94,8.4967]
[1755691906316,0.04070888,181.01,180.95,2.97]
[1755691908126,0.04070888,181.01,180.96,2.97]
[1755691908630,0.04070888,181.01,180.97,2.97]
[1755691908824,0.04070888,181.01,180.98,2.97]
[1755691909331,6.2369709,181.08,180.98,2.97]
[1755691909523,0.03991564,181.01,180.98,2.97]
[1755691909822,0.03991564,181.01,180.94,2.97]
[1755691910028,6.2369709,181.08,180.94,2.97]
[1755691910224,0.03925618,180.99,180.94,2.97]
[1755691910523,0.03925618,180.99,180.91,2.97]
[1755691910731,2.43,181.07,180.91,2.97]
[1755691911021,0.0412152,180.96,180.91,2.97]
[1755691911220,2.43,181.04,180.86,6.22519632]
[1755691911221,2.43,181.04,180.93,2.97]
[1755691911427,3.8069709,181.04,180.93,2.97]
[1755691911626,0.04132446,180.95,180.93,2.97]
[1755691911817,0.04132446,180.95,180.88,2.97]
[1755691912032,2.47,181.07,180.92,0.04161227]
[1755691912225,2.47,181.07,180.93,2.97]
[1755691915936,2.47,181.07,180.93,8.4969]
[1755691916235,2.47,181.07,180.94,2.9]
[1755691916630,2.47,181.07,180.95,2.9]
[1755691917032,2.47,181.11,180.99,2.9]
[1755691921039,2.47,181.11,181.01,2.9]
[1755691923331,6.2769709,181.11,181.01,2.9]
[1755691923530,2.47,181.1,181.01,2.9]
[1755691923740,2.47,181.1,180.97,2.9]
[1755691925236,2.47,181.1,180.97,4.5787202]
[1755691925439,2.47,181.1,180.99,2.9]
[1755691925630,2.47,181.1,181.0,2.9]
[1755691927736,2.47,181.1,180.96,4.5787202]
[1755691927737,2.47,181.1,180.96,2.9]
[1755691928746,3.8069709,181.07,180.96,2.9]
[1755691929252,6.2769709,181.07,180.96,2.9]
[1755691930233,6.2769709,181.07,181.0,0.04051748]
[1755691932545,2.48,181.06,181.0,0.04051748]
[1755691933339,3.8069709,181.07,181.0,0.04051748]
[1755691933340,6.19200318,181.11,181.0,0.04051748]
[1755691933540,6.2869709,181.09,181.0,0.04051748]
[1755691933744,2.48,181.08,180.98,2.9]
[1755691937744,2.48,181.08,181.01,0.03504253]
[1755691937944,2.48,181.08,181.01,2.93504253]
[1755691938440,2.44218354,181.07,181.01,2.93504253]
[1755691939750,2.44218354,181.1,181.01,2.93504253]
[1755691940148,2.44218354,181.1,181.01,2.9]
[1755691940345,2.47,181.12,181.01,2.9]
[1755691944150,20.37764181,181.13,180.97,4.5787202]
[1755691944151,2.47,181.08,180.97,7.4787202]
[1755691944349,19.05,181.08,180.97,2.9]
[1755691944656,2.47,181.08,180.97,2.9]
[1755691945045,2.47,181.04,180.97,2.9]
[1755691946450,2.47,181.04,180.93,7.5187202]
[1755691946745,2.47,181.0,180.93,2.94]
[1755691947446,3.79764181,181.01,180.93,2.94]
[1755691947646,6.19200318,181.07,180.94,2.94]
[1755691947647,3.79764181,181.05,180.94,2.94]
[1755691947848,2.47,181.04,180.94,2.94]
[1755691948043,2.47,181.04,180.94,7.5187202]
[1755691948443,2.47,181.04,180.94,2.94]
[1755691950756,2.47,181.04,180.95,2.94]
[1755691951054,2.47,181.09,180.98,2.94]
[1755691951356,0.03874574,181.01,180.99,2.94]
[1755691951550,2.47,181.06,180.96,4.5787202]
[1755691951754,2.47,181.06,180.95,4.5787202]
[1755691952556,2.47,181.04,180.94,7.5187202]
[1755691952750,2.47,181.04,180.94,2.94]
[1755691953755,2.47,181.0,180.92,4.5787202]
[1755691954658,2.47,181.0,180.93,2.94]
[1755691955059,2.47,181.0,180.95,0.0365956]
[1755691955358,6.26764181,181.01,180.95,0.0365956]
[1755691957163,20.37764181,181.01,180.95,0.0365956]
[1755691957361,2.47,181.0,180.95,0.0365956]
[1755691957860,22.84764181,181.01,180.95,0.0365956]
[1755691958062,6.26764181,181.01,180.95,0.0365956]
[1755691958258,2.47,181.01,180.95,0.0365956]
[1755691959862,19.05,181.01,180.95,0.0365956]
[1755691960063,2.47,180.97,180.88,2.94]
[1755691961161,2.47,181.01,180.88,7.54271074]
[1755691961363,0.03901147,180.94,180.89,2.94]
[1755691961860,0.03901147,180.94,180.87,2.94]
[1755691975669,2.48,180.93,180.84,7.64615814]
[1755691975970,2.48,180.93,180.84,3.05]
[1755691976375,0.03608247,180.9,180.84,3.05]
[1755691978764,0.03608247,180.9,180.84,8.5798]
[1755691979171,0.03608247,180.9,180.82,3.05]
[1755691979476,0.03608247,180.9,180.85,5.5293]
[1755691979674,0.03608247,180.9,180.84,3.05]
[1755691985277,0.03608247,180.9,180.84,4.59615814]
[1755691985483,0.03608247,180.9,180.86,3.05]
[1755691985677,0.03608247,180.9,180.84,4.59615814]
[1755691985982,0.03608247,180.9,180.89,3.05]
[1755691986483,2.48,181.0,180.89,3.05]
[1755691986780,0.04046623,180.91,180.89,3.05]
[1755691986981,0.04046623,180.91,180.9,3.05]
[1755691987175,20.38193435,181.03,180.9,3.05]
[1755691987176,2.48,180.98,180.9,3.05]
[1755691987380,2.48,180.98,180.86,4.59615814]
[1755691987381,2.48,180.98,180.86,3.05]
[1755691987682,0.04197435,180.92,180.86,3.05]
[1755691989385,0.04197435,180.92,180.86,7.64615814]
[1755691989581,0.04197435,180.92,180.87,3.05]
[1755691989781,0.04197435,180.92,180.89,3.05]
[1755691989978,0.04197435,180.92,180.9,3.05]
[1755691990280,0.04197435,180.92,180.91,3.05]
[1755691992281,2.48,181.02,180.91,3.61]
[1755691992482,2.48,181.02,180.92,3.05]
[1755691993782,2.48,181.02,180.95,0.03508981]
[1755691994581,3.80193435,180.99,180.95,0.03508981]
[1755691994778,2.52,180.98,180.95,0.03508981]
[1755691995082,2.52,180.96,180.95,0.03508981]
[1755691995473,2.52,180.96,180.87,3.05]
[1755691996076,3.80193435,180.95,180.87,3.05]
[1755691996272,2.52,180.94,180.84,4.59615814]
[1755691996586,2.52,180.94,180.83,4.59615814]
[1755691996782,0.03673793,180.91,180.82,7.64615814]
[1755691996983,2.52,180.9,180.82,7.64615814]
[1755691997378,2.52,180.9,180.82,3.05]
[1755691999480,3.83867228,180.91,180.82,3.05]
[1755691999685,0.03673793,180.91,180.82,3.05]
[1755692000985,2.52,180.9,180.8,3.05]
[1755692001779,0.03772051,180.87,180.8,3.05]
[1755692003383,0.03772051,180.87,180.82,4.60900719]
[1755692003578,0.03772051,180.87,180.84,4.60900719]
[1755692003784,0.03772051,180.87,180.85,3.05]
[1755692004081,0.03772051,180.87,180.86,3.05]
[1755692006791,3.80193435,180.99,180.86,3.61]
[1755692006792,2.56,180.98,180.86,3.61]
[1755692006988,2.56,180.98,180.86,3.05]
[1755692007187,2.56,180.98,180.86,7.65900719]
[1755692007989,2.56,180.98,180.9,0.03620698]
[1755692009093,19.14,180.98,180.9,0.03620698]
[1755692009287,16.58,180.98,180.9,0.03620698]
[1755692009586,2.56,180.97,180.9,0.03620698]
[1755692010386,2.56,180.92,180.9,0.03620698]
[1755692015195,2.44594303,180.94,180.9,0.03620698]
[1755692015391,5.00594303,180.97,180.92,2.85]
[1755692015596,2.56,180.96,180.92,2.85]
[1755692015790,2.56,180.96,180.9,0.03620698]
[1755692016593,2.44594303,180.94,180.9,0.03620698]
[1755692016795,2.56,180.92,180.9,0.03620698]
[1755692017593,2.44594303,180.94,180.9,2.88620698]
[1755692018091,5.00594303,180.94,180.9,2.88620698]
[1755692018793,2.56,180.94,180.9,2.88620698]
[1755692019204,5.5277,180.91,180.9,0.03620698]
[1755692021708,5.5277,180.91,180.9,6.98e-06]
[1755692021905,5.5277,180.91,180.81,11.65881085]
[1755692021906,2.56,180.91,180.82,2.85]
[1755692022107,2.44594303,180.89,180.82,2.85]
[1755692023606,2.44594303,180.86,180.78,7.45900719]
[1755692023807,2.44594303,180.86,180.78,2.85]
[1755692025108,5.00594303,180.86,180.78,2.85]
[1755692025405,2.56,180.82,180.74,7.45900719]
[1755692025613,2.44594303,180.8,180.73,121.32573673]
[1755692025811,2.56,180.79,180.7,2.85]
[1755692026914,0.03638122,180.76,180.7,2.85]
[1755692029208,2.59638122,180.76,180.7,2.85]
[1755692030918,0.03638122,180.76,180.7,2.85]
[1755692038116,0.03638122,180.76,180.69,3.12]
[1755692038517,0.03638122,180.76,180.7,5.5339]
[1755692038723,0.03638122,180.76,180.73,3.12]
[1755692038926,0.03638122,180.76,180.74,3.12]
[1755692039826,0.03638122,180.76,180.7,3.12]
[1755692041620,0.03638122,180.76,180.67,7.70474199]
[1755692041817,0.03638122,180.76,180.67,3.12]
[1755692042018,0.03638122,180.76,180.67,5.5348]
[1755692042218,0.03638122,180.76,180.65,8.39571625]
[1755692042219,0.03638122,180.76,180.68,3.12]
[1755692042416,0.03638122,180.76,180.71,5.5338]
[1755692042626,2.55,180.81,180.72,3.12]
[1755692043031,0.03719923,180.75,180.7,3.12]
[1755692043328,0.03719923,180.75,180.72,3.12]
[1755692043528,0.03719923,180.75,180.73,3.12]
[1755692043731,0.03719923,180.75,180.74,3.12]
[1755692047329,0.03719923,180.75,180.74,8.6529]
[1755692047523,2.55,180.85,180.75,3.12]
[1755692047926,2.55,180.85,180.75,8.6525]
[1755692048633,5.5316,180.79,180.77,3.12]
[1755692048932,5.5316,180.79,180.78,3.15542986]
[1755692049830,5.5316,180.79,180.78,0.03542986]
[1755692052335,8.1116,180.79,180.78,0.03542986]
[1755692060430,5.5316,180.79,180.78,0.03542986]
[1755692061532,8.1116,180.79,180.78,0.03542986]
[1755692062228,5.5316,180.79,180.78,3.15542986]
[1755692062439,5.5316,180.79,180.78,0.03542986]
[1755692062832,8.1116,180.79,180.78,0.03542986]
[1755692063839,5.5316,180.79,180.78,0.03542986]
[1755692064443,2.58,180.84,180.79,3.12]
[1755692064638,2.58,180.88,180.81,3.12]
[1755692065032,5.5303,180.83,180.81,3.12]
[1755692065240,2.58,180.88,180.82,3.12]
[1755692065540,5.5297,180.85,180.82,3.12]
[1755692065742,2.58,180.88,180.83,3.11751317]
[1755692065936,2.58,180.88,180.83,0.03751317]
[1755692066137,82.74160203,180.93,180.84,3.08]
[1755692066138,2.59,180.92,180.84,3.08]
[1755692066543,5.5285,180.89,180.84,8.65135306]
[1755692066743,5.5285,180.89,180.85,3.08]
[1755692066945,2.59,180.92,180.87,3.08]
[1755692067143,5.5282,180.9,180.87,3.08]
[1755692067340,2.59,180.92,180.87,3.08]
[1755692067845,5.5283,180.89,180.87,3.12193302]
[1755692068246,2.59,180.92,180.87,0.04193302]
[1755692068546,5.5286,180.88,180.87,0.04193302]
[1755692068745,8.1186,180.88,180.87,0.04193302]
[1755692069644,5.5286,180.88,180.87,0.04193302]
[1755692070840,8.1186,180.88,180.87,0.04193302]
[1755692073246,5.5286,180.88,180.87,0.04193302]
[1755692074447,8.1186,180.88,180.87,0.04193302]
[1755692080349,5.5302,180.83,180.81,3.08]
[1755692080550,2.59,180.88,180.78,3.08]
[1755692080745,2.44764611,180.89,180.78,3.08]
[1755692080948,2.44764611,180.89,180.79,3.08]
[1755692081253,5.5295,180.85,180.79,3.08]
[1755692081644,0.04108765,180.86,180.79,3.08]
[1755692081840,5.57038765,180.86,180.79,3.08]
[1755692082049,0.04108765,180.86,180.79,3.08]
[1755692082449,5.5297,180.85,180.81,5.5305]
[1755692082655,5.5297,180.85,180.83,3.08]
[1755692082845,5.5297,180.85,180.84,3.08]
[1755692083952,0.04108765,180.86,180.85,3.08]
[1755692084354,5.03764611,180.92,180.85,3.08]
[1755692084751,2.59,180.96,180.85,5.52764611]
[1755692084952,5.5279,180.91,180.88,3.08]
[1755692085255,84.8632867,180.98,180.88,3.08]
[1755692085454,82.41564059,180.98,180.88,5.52764611]
[1755692085654,5.5275,180.92,180.9,3.08]
[1755692085955,5.5275,180.92,180.91,3.08]
[1755692086748,2.63,181.0,180.91,3.08]
[1755692087454,2.63,181.0,180.91,8.6075]
[1755692087655,2.63,181.0,180.94,0.03894912]
[1755692088760,2.63,181.03,180.94,5.56574912]
[1755692089257,2.63,181.03,180.95,3.08]
[1755692090053,2.63,181.03,180.94,0.03894912]
[1755692090254,5.07764611,181.03,180.94,3.11894912]
[1755692090455,5.07764611,181.03,180.94,8.64554912]
[1755692090649,5.5253,180.99,180.95,3.08]
[1755692090850,5.5253,180.99,180.94,5.56554912]
[1755692091057,5.5253,180.99,180.97,3.08]
[1755692091253,5.07764611,181.03,180.97,3.08]
[1755692091254,2.63,181.03,180.97,3.08]
[1755692091953,5.07764611,181.05,180.98,0.0361358]
[1755692092256,2.63,181.05,180.98,3.1161358]
[1755692092557,2.63,181.05,180.98,0.0361358]
[1755692093367,5.5245,181.02,180.99,3.08]
[1755692093860,2.44764611,181.08,180.99,3.08]
[1755692094260,2.63,181.07,180.95,11.05404611]
[1755692094758,2.63,181.07,180.95,5.52764611]
[1755692094956,2.63,181.07,180.95,3.08]
[1755692095159,2.63,181.07,180.99,0.03692191]
[1755692096162,2.44764611,181.05,180.99,0.03692191]
[1755692096662,2.63,181.02,180.95,3.08]
[1755692096850,2.44764611,181.05,181.0,0.03486767]
[1755692097056,2.63,181.01,181.0,0.03486767]
[1755692098454,2.63,181.01,180.92,3.1]
[1755692099763,0.03951185,180.98,180.92,3.1]
[1755692100368,2.66951185,180.98,180.87,3.1]
[1755692100768,2.63,180.98,180.87,8.6287]
[1755692100966,2.63,180.98,180.88,3.1]
[1755692101171,0.03843754,180.94,180.89,2.44764611]
[1755692101359,0.03843754,180.94,180.91,3.1]
[1755692101661,2.44764611,181.08,180.93,3.1]
[1755692101662,2.44764611,181.05,180.93,3.1]
[1755692101873,5.11764611,181.08,180.96,3.1]
[1755692102861,5.11764611,181.08,180.95,2.44764611]
[1755692102862,5.11764611,181.08,181.0,0.0423255]
[1755692103167,2.67,181.08,181.0,3.1423255]
[1755692103563,5.11764611,181.08,181.0,3.1423255]
[1755692105673,2.67,181.07,181.0,0.0423255]
[1755692106783,2.67,181.07,181.0,3.1423255]
[1755692110781,2.67,181.07,181.0,0.0423255]
[1755692111175,2.44764611,181.05,181.0,0.0423255]
[1755692111476,2.67,181.02,181.0,0.0423255]
[1755692111683,2.67,181.02,180.96,3.1]